bitfinex/quotes_ETHUSD_20241106
["timestamp","ask_amount","ask_price","bid_price","bid_amount"]
[1730896620518,0.840079,2636.0,2635.5,3.83940269]
[1730896620721,0.840079,2636.0,2635.6,3.79412]
[1730896621017,0.840079,2636.0,2635.5,0.04506269]
[1730896621018,4.633729,2636.0,2635.5,3.83940269]
[1730896621186,4.633729,2636.0,2635.7,0.04495303]
[1730896621385,0.9258139,2635.9,2635.6,0.04500786]
[1730896621602,3.79365,2636.0,2635.8,0.04489821]
[1730896621797,3.79365,2636.0,2635.7,0.04495303]
[1730896622121,3.79365,2636.0,2635.8,0.04489821]
[1730896622418,4.635456,2636.0,2635.8,0.04489821]
[1730896622613,4.635456,2636.0,2635.5,3.79423]
[1730896622819,4.635456,2636.0,2635.9,0.04484339]
[1730896623016,4.635456,2636.0,2635.5,3.79423]
[1730896623231,4.635456,2636.0,2635.9,0.04484339]
[1730896623438,4.635456,2636.0,2635.5,3.79423]
[1730896623900,3.79379,2635.9,2635.6,0.04500786]
[1730896624238,4.635456,2636.0,2635.6,0.04500786]
[1730896626836,8.429156,2636.0,2635.6,0.04500786]
[1730896626999,4.64363031,2635.9,2635.6,0.04500786]
[1730896627201,3.79378,2635.9,2635.6,0.04500786]
[1730896628533,4.62448,2636.1,2635.6,0.04500786]
[1730896628753,4.62446,2636.1,2635.6,3.83913786]
[1730896628897,4.62444,2636.1,2635.7,3.79398]
[1730896629101,5.466213,2636.1,2635.8,0.04489467]
[1730896629308,4.55197,2635.9,2635.8,0.04489467]
[1730896629636,4.55197,2635.9,2635.4,3.79447]
[1730896629846,4.55197,2635.9,2635.5,3.79433]
[1730896629998,9.51863519,2636.0,2635.7,0.7602]
[1730896630199,1.2625018,2636.6,2635.9,8.82318699]
[1730896630546,0.50725018,2636.5,2636.1,7.58686]
[1730896630710,0.50725018,2636.5,2636.1,3.79339]
[1730896630909,0.4301018,2636.6,2636.2,0.79255014]
[1730896631224,0.4301018,2636.6,2636.2,4.58578014]
[1730896631411,3.81,2636.7,2636.3,3.79312]
[1730896631616,7.60264,2636.7,2636.2,4.58577014]
[1730896631832,3.7928,2636.6,2636.4,0.04160892]
[1730896632011,3.7928,2636.6,2636.3,0.04023657]
[1730896632220,5.0664218,2636.6,2636.2,0.7508]
[1730896632432,3.7929,2636.5,2636.4,0.04018177]
[1730896632748,7.58593,2636.5,2636.1,0.7896]
[1730896633048,0.88595518,2636.4,2636.1,0.7896]
[1730896633252,5.46070518,2636.4,2636.2,0.04029137]
[1730896633411,3.79319,2636.3,2636.2,0.04029137]
[1730896633612,3.79319,2636.3,2635.8,0.7626]
[1730896633811,3.79319,2636.3,2636.2,0.04029137]
[1730896634028,3.79319,2636.3,2635.8,0.7626]
[1730896634230,0.836794,2636.2,2635.8,0.7626]
[1730896634622,4.630144,2636.2,2635.8,0.7626]
[1730896635442,4.630144,2636.2,2635.6,4.26932699]
[1730896635642,3.79351,2636.1,2635.6,4.26932699]
[1730896635819,3.79351,2636.1,2635.7,3.79405]
[1730896636443,1.2736218,2636.6,2636.1,3.79341]
[1730896636602,3.79295,2636.5,2636.1,3.79341]
[1730896637047,3.79312,2636.4,2635.9,8.06301699]
[1730896637506,3.79312,2636.4,2635.9,4.26932699]
[1730896637704,3.7934,2636.2,2635.8,4.5476]
[1730896637905,4.57291,2636.3,2635.8,4.5476]
[1730896638137,0.7797,2636.3,2635.8,4.5476]
[1730896638440,3.79334,2636.2,2635.8,0.7537]
[1730896638645,4.2885532,2636.2,2635.8,0.7537]
[1730896638848,0.4952132,2636.2,2635.8,4.54759]
[1730896639146,4.57299,2636.3,2635.8,8.34142]
[1730896639356,4.57299,2636.3,2635.8,4.54753]
[1730896639548,0.7797,2636.3,2635.9,3.79376]
[1730896639716,0.7797,2636.3,2636.0,3.79354]
[1730896639916,3.79284,2636.6,2636.0,3.79353]
[1730896640231,8.42833,2636.7,2636.2,3.79331]
[1730896640742,3.79277,2636.6,2636.2,3.79331]
[1730896640904,3.79277,2636.6,2636.0,3.79352]
[1730896640905,4.635867,2636.5,2636.0,3.79352]
[1730896641544,4.635867,2636.5,2636.0,7.58705]
[1730896641709,0.842847,2636.5,2636.1,3.79346]
[1730896641910,0.842847,2636.5,2636.2,3.79322]
[1730896642106,3.79276,2636.6,2636.1,3.79346]
[1730896642414,4.6357,2636.7,2636.1,3.79346]
[1730896642415,8.42838,2636.7,2636.2,3.79321]
[1730896642720,10.27391932,2636.7,2636.2,3.79321]
[1730896643207,8.42838,2636.7,2636.3,4.57636]
[1730896643406,8.42838,2636.7,2636.3,0.82330664]
[1730896644816,4.6357,2636.7,2636.3,0.82330664]
[1730896645021,3.79298,2636.5,2636.3,0.04010664]
[1730896645222,3.79288,2636.6,2636.3,0.04010664]
[1730896645433,5.0658338,2636.6,2636.3,0.0386603]
[1730896646032,9.51863519,2636.9,2636.4,0.7745]
[1730896646232,9.51863519,2636.9,2636.5,3.79284]
[1730896646447,13.31097519,2636.9,2636.5,3.79284]
[1730896646744,13.31097519,2636.9,2636.6,0.03989404]
[1730896647547,9.51863519,2636.9,2636.6,0.03989404]
[1730896647923,9.51863519,2636.9,2636.6,3.83265404]
[1730896648126,3.79177,2637.3,2636.8,7.58484]
[1730896648374,4.59212,2637.4,2636.9,3.83119466]
[1730896649068,3.79154,2637.5,2637.0,4.62087]
[1730896649219,5.12256252,2637.5,2637.0,4.62087]
[1730896649429,5.12256252,2637.5,2637.1,0.03723807]
[1730896649857,3.79162,2637.4,2637.1,0.03723807]
[1730896650426,3.79176,2637.3,2637.1,0.03723807]
[1730896651762,0.89143425,2637.3,2637.1,0.03723807]
[1730896652337,4.68318425,2637.3,2637.1,0.03723807]
[1730896652541,3.7919,2637.2,2637.1,0.03723807]
[1730896652752,0.89143425,2637.3,2636.8,0.82]
[1730896653064,3.79169,2637.4,2637.1,0.03711873]
[1730896653270,3.79183,2637.3,2636.8,4.61246]
[1730896653469,3.79183,2637.3,2637.2,0.03706397]
[1730896653667,3.79183,2637.3,2636.8,4.61246]
[1730896653974,3.79192,2637.2,2636.8,4.61246]
[1730896654138,3.79192,2637.2,2636.9,0.03722828]
[1730896655853,3.79176,2637.3,2636.9,0.03722828]
[1730896656072,4.30402525,2637.3,2636.9,0.03722828]
[1730896656583,3.79196,2637.2,2636.9,0.03722828]
[1730896658240,4.30407525,2637.3,2636.9,0.03722828]
[1730896658448,3.7919,2637.2,2636.9,0.03722828]
[1730896659640,3.79172,2637.4,2636.9,0.03722828]
[1730896659641,3.79183,2637.3,2636.9,0.03722828]
[1730896661352,3.79191,2637.2,2636.9,0.03722828]
[1730896662490,4.00220225,2637.4,2636.9,0.03722828]
[1730896662712,3.79189,2637.3,2636.9,0.03722828]
[1730896663054,3.79212,2637.1,2636.9,0.03722828]
[1730896664122,3.79196,2637.2,2636.9,0.03722828]
[1730896664257,3.79186,2637.3,2636.9,0.03722828]
[1730896664453,3.79204,2637.1,2636.9,0.03722828]
[1730896666193,3.79218,2637.0,2636.9,0.03722828]
[1730896666995,4.58428,2637.0,2636.9,0.03722828]
[1730896667501,3.79264,2636.7,2636.4,0.763]
[1730896667851,3.79264,2636.7,2636.5,0.03734697]
[1730896668470,7.58534,2636.7,2636.5,0.03734697]
[1730896669658,3.79264,2636.7,2636.5,0.03734697]
[1730896669858,7.58534,2636.7,2636.5,0.03734697]
[1730896670276,3.79276,2636.6,2636.5,0.03734697]
[1730896671402,4.5513,2636.6,2636.5,0.03734697]
[1730896671560,3.79311,2636.4,2636.2,0.8051]
[1730896672072,3.7932,2636.3,2636.0,0.8051]
[1730896673064,3.79343,2636.2,2636.0,0.8051]
[1730896673281,3.79348,2636.1,2635.8,0.8023]
[1730896673509,0.7549,2636.2,2635.8,0.8023]
[1730896673719,4.54805,2636.4,2635.9,3.79369]
[1730896673903,4.54805,2636.4,2635.8,4.59613]
[1730896674100,3.79328,2636.3,2635.8,8.38998]
[1730896674299,3.79328,2636.3,2635.9,3.79372]
[1730896675214,7.58657,2636.3,2635.9,3.79372]
[1730896675418,4.627427,2636.3,2635.8,4.59619]
[1730896675714,3.79334,2636.2,2635.8,4.59619]
[1730896676080,4.627427,2636.3,2635.8,4.59619]
[1730896676487,8.420727,2636.3,2635.8,4.59619]
[1730896676886,3.79328,2636.3,2635.8,4.59619]
[1730896677589,0.7549,2636.4,2635.9,3.79366]
[1730896677790,4.54799,2636.4,2635.9,3.79366]
[1730896678220,0.7549,2636.4,2636.0,3.79356]
[1730896678527,3.79257,2636.8,2636.3,3.79311]
[1730896679028,3.79257,2636.8,2636.2,0.8182]
[1730896679029,5.90130452,2636.9,2636.2,0.8182]
[1730896679227,3.79247,2636.8,2636.3,3.79311]
[1730896679522,4.78186524,2636.8,2636.4,3.79302]
[1730896679895,9.69366452,2636.9,2636.3,3.79311]
[1730896680111,3.81,2636.9,2636.6,4.54526]
[1730896680311,1.82463519,2637.1,2636.8,0.7525]
[1730896680629,3.79169,2637.4,2636.9,3.79225]
[1730896680793,4.626692,2637.4,2636.9,3.79225]
[1730896681223,4.626692,2637.4,2636.8,4.54495]
[1730896681525,3.79184,2637.3,2636.8,4.54495]
[1730896681702,3.7919,2637.2,2636.8,0.7525]
[1730896682712,3.79218,2637.1,2636.8,0.7525]
[1730896682921,3.79218,2637.1,2636.3,4.5783]
[1730896682922,3.79248,2636.8,2636.3,4.5783]
[1730896683095,3.79263,2636.7,2636.3,0.7852]
[1730896684125,3.79245,2636.9,2636.4,3.79297]
[1730896684437,4.631245,2636.9,2636.4,3.79297]
[1730896684936,3.79208,2637.1,2636.6,3.79268]
[1730896685227,3.79208,2637.1,2636.6,7.58535]
[1730896685997,4.6338692,2637.2,2636.7,3.79259]
[1730896686219,4.6338692,2637.2,2636.8,3.79242]
[1730896686734,4.6338692,2637.2,2636.9,0.8297]
[1730896687826,4.6338692,2637.2,2636.3,3.79319]
[1730896687827,0.54251692,2637.1,2636.3,3.79319]
[1730896688026,3.79255,2636.8,2636.4,0.7718]
[1730896688235,3.79268,2636.7,2636.4,0.7718]
[1730896688433,3.79268,2636.7,2636.5,0.0374909]
[1730896688615,0.758523,2636.7,2636.5,0.0374909]
[1730896688819,0.7627,2637.0,2636.5,0.0374909]
[1730896689030,3.79252,2636.8,2636.5,0.0374909]
[1730896689201,3.79233,2636.9,2636.5,0.0374909]
[1730896689603,3.79259,2636.8,2636.5,0.0374909]
[1730896689918,3.79263,2636.7,2636.5,0.0374909]
[1730896690223,3.79276,2636.6,2636.5,0.0374909]
[1730896691407,3.79276,2636.6,2636.2,0.8221]
[1730896691619,3.79276,2636.6,2636.5,0.03734346]
[1730896691830,3.79295,2636.5,2636.2,0.8221]
[1730896692214,3.79305,2636.4,2635.8,0.8092]
[1730896692422,3.79327,2636.3,2635.8,4.60305]
[1730896692630,3.79327,2636.3,2635.9,3.79374]
[1730896693038,3.79327,2636.3,2635.8,8.39689]
[1730896693448,0.812,2636.5,2635.8,0.8092]
[1730896693449,4.60492,2636.5,2635.8,0.8092]
[1730896693615,10.27153519,2636.8,2635.8,0.8092]
[1730896693815,3.79315,2636.4,2635.9,3.79377]
[1730896694011,7.5863,2636.4,2635.9,3.79377]
[1730896694627,3.79315,2636.4,2635.9,3.79377]
[1730896694834,3.79324,2636.3,2635.9,3.79377]
[1730896695009,3.79324,2636.3,2635.8,4.60304]
[1730896696954,7.58629,2636.4,2635.9,3.79369]
[1730896697454,3.79314,2636.4,2636.0,3.79359]
[1730896697639,3.79314,2636.4,2635.8,0.8092]
[1730896697825,3.79314,2636.4,2636.0,3.79362]
[1730896698143,7.58628,2636.4,2635.9,3.79375]
[1730896698537,3.79314,2636.4,2635.9,3.7937]
[1730896698737,3.79314,2636.4,2635.9,3.79368]
[1730896699564,3.7932,2636.3,2635.9,3.79368]
[1730896700433,3.79314,2636.4,2635.9,3.79368]
[1730896700639,14.06403519,2636.8,2636.2,3.79327]
[1730896700864,3.79264,2636.7,2636.2,8.40314]
[1730896701075,3.79277,2636.6,2636.2,4.60987]
[1730896701983,3.79293,2636.5,2636.2,0.8166]
[1730896703265,3.79277,2636.6,2636.2,0.8166]
[1730896703441,7.58565,2636.6,2636.3,0.03756536]
[1730896703948,3.79291,2636.5,2636.3,0.03756536]
[1730896704154,0.7592,2636.4,2635.9,0.7528]
[1730896704499,2.54491852,2636.6,2636.0,3.90724526]
[1730896704769,2.54491852,2636.6,2636.0,3.83137245]
[1730896704981,3.793,2636.5,2636.1,3.79344]
[1730896705379,3.793,2636.5,2636.2,0.03767283]
[1730896707572,3.79308,2636.4,2636.2,0.03767283]
[1730896707765,3.79308,2636.4,2636.0,3.7936]
[1730896707964,3.79308,2636.4,2636.1,0.03772763]
[1730896709958,3.79291,2636.5,2636.1,0.03772763]
[1730896710385,3.79308,2636.4,2636.0,3.79362]
[1730896710695,3.79308,2636.4,2636.2,0.03784835]
[1730896710871,3.79308,2636.4,2636.1,0.03790316]
[1730896711069,3.79308,2636.4,2636.0,3.79362]
[1730896711295,3.79308,2636.4,2636.2,0.03784835]
[1730896711587,7.58622,2636.4,2636.3,0.03779355]
[1730896711795,3.79297,2636.5,2636.3,0.03779355]
[1730896712090,3.79297,2636.5,2636.0,3.79361]
[1730896712498,3.79297,2636.5,2636.1,0.03790316]
[1730896712793,3.79297,2636.5,2636.1,3.83138316]
[1730896712996,4.55198,2636.6,2636.1,3.83132316]
[1730896713197,5.70638773,2636.6,2636.1,3.83132316]
[1730896713493,3.79298,2636.5,2636.1,3.83132316]
[1730896714571,3.79306,2636.4,2636.1,0.03790316]
[1730896715091,5.70638773,2636.6,2636.1,3.83135316]
[1730896715296,4.55198,2636.6,2636.1,3.83135316]
[1730896715595,8.34484,2636.6,2636.1,3.83135316]
[1730896715797,4.55198,2636.6,2636.1,3.83135316]
[1730896715982,4.55198,2636.6,2636.1,0.03790316]
[1730896716189,9.51863519,2636.8,2636.4,3.79295]
[1730896716697,9.51863519,2636.8,2636.5,0.0377015]
[1730896716902,9.51863519,2636.8,2636.5,3.8305115]
[1730896717075,9.51863519,2636.8,2636.6,3.79276]
[1730896717260,9.51863519,2636.8,2636.6,3.83029671]
[1730896717461,3.79191,2637.2,2636.7,4.55598]
[1730896717658,3.79205,2637.1,2636.7,4.55598]
[1730896717890,3.79205,2637.1,2636.8,0.03751958]
[1730896718465,3.79224,2637.0,2636.8,0.03751958]
[1730896718806,4.550669,2637.0,2636.8,0.03751958]
[1730896719000,3.79224,2637.0,2636.8,0.03751958]
[1730896719693,3.7922,2637.0,2636.8,0.03751958]
[1730896720085,3.7922,2637.0,2636.5,4.5433]
[1730896720281,3.7922,2637.0,2636.9,0.0374648]
[1730896720812,3.7922,2637.0,2636.5,4.5433]
[1730896721016,3.79235,2636.9,2636.5,4.5433]
[1730896721187,4.632146,2637.0,2636.5,4.5433]
[1730896721791,3.79235,2636.9,2636.5,4.5433]
[1730896722007,3.79223,2637.0,2636.6,3.79273]
[1730896722193,4.60719,2637.2,2636.6,3.79273]
[1730896722391,0.7788,2636.9,2636.1,0.7652]
[1730896722618,0.7788,2636.9,2636.5,0.7652]
[1730896722791,4.57121,2636.9,2636.5,4.5581]
[1730896722991,0.7788,2636.9,2636.5,4.55802]
[1730896723296,3.7922,2637.0,2636.6,3.79269]
[1730896723497,3.7922,2637.0,2636.5,4.5581]
[1730896723706,3.79236,2636.9,2636.5,4.5581]
[1730896723896,4.62672,2637.0,2636.5,4.55804]
[1730896724216,4.553,2637.2,2636.6,3.79269]
[1730896724582,3.79205,2637.1,2636.6,3.79269]
[1730896724907,3.79205,2637.1,2636.7,3.79258]
[1730896725606,3.79205,2637.1,2636.6,3.79269]
[1730896725817,3.79205,2637.1,2636.6,7.58536]
[1730896726010,3.79205,2637.1,2636.6,3.79267]
[1730896726387,3.79205,2637.1,2636.7,3.7926]
[1730896726901,3.79205,2637.1,2636.5,4.55808]
[1730896727089,4.247355,2637.1,2636.6,3.79268]
[1730896727820,8.039495,2637.1,2636.6,3.79268]
[1730896728327,4.247355,2637.1,2636.6,3.79268]
[1730896728693,0.455305,2637.1,2636.5,0.7652]
[1730896729026,3.79247,2636.9,2636.5,0.7652]
[1730896730932,4.55297,2637.2,2636.7,3.79258]
[1730896733398,4.55297,2637.2,2636.8,0.03733005]
[1730896735505,3.79204,2637.1,2636.8,0.03733005]
[1730896736532,3.79233,2636.9,2636.8,0.03733005]
[1730896736740,3.79233,2636.9,2636.5,4.55807]
[1730896736938,3.79233,2636.9,2636.8,0.03733005]
[1730896737251,3.79177,2637.3,2636.8,0.03733005]
[1730896737439,3.79177,2637.3,2636.9,4.59872]
[1730896737648,4.931963,2637.3,2636.9,4.63599527]
[1730896738421,10.32033519,2637.6,2636.9,5.11300226]
[1730896738627,10.32033519,2637.6,2637.2,3.79181]
[1730896739042,10.32033519,2637.6,2637.3,0.0368596]
[1730896739358,12.49162571,2637.6,2637.2,3.79181]
[1730896739569,12.49162571,2637.6,2637.4,0.03680484]
[1730896739732,16.28296571,2637.6,2637.3,0.0368596]
[1730896739955,16.28296571,2637.6,2637.5,0.03675009]
[1730896740132,16.28296571,2637.6,2637.4,0.03680484]
[1730896740333,14.11167519,2637.6,2637.5,0.03675009]
[1730896740642,3.79151,2637.5,2637.0,3.7921]
[1730896741171,3.79151,2637.5,2637.0,7.5842]
[1730896741337,3.79151,2637.5,2637.0,3.7921]
[1730896742213,3.79151,2637.5,2637.0,7.5842]
[1730896742437,3.79151,2637.5,2637.1,3.79204]
[1730896742851,14.11167519,2637.6,2637.1,3.79204]
[1730896743654,17.90308519,2637.6,2637.1,3.79204]
[1730896744575,3.79148,2637.5,2637.1,3.79204]
[1730896745725,14.11167519,2637.6,2637.1,3.79204]
[1730896745920,9.51863519,2637.6,2637.4,4.59895]
[1730896746146,9.51863519,2637.6,2637.4,0.8074]
[1730896747022,4.56296,2638.0,2637.5,3.79138]
[1730896747528,4.56296,2638.0,2637.5,3.86720195]
[1730896747729,4.56296,2638.0,2637.5,3.79138]
[1730896747930,9.51863519,2638.3,2637.7,0.7956]
[1730896748144,9.51863519,2638.3,2638.2,3.79046]
[1730896748318,9.51863519,2638.3,2638.1,8.85540699]
[1730896748319,3.97365519,2639.6,2638.5,3.79002]
[1730896748518,3.78929,2639.1,2638.6,3.78988]
[1730896748765,3.78929,2639.1,2638.6,3.8252509]
[1730896748930,0.459839,2639.0,2638.6,3.8252509]
[1730896749318,7.59874,2639.4,2638.9,3.78938]
[1730896749517,3.81,2639.4,2638.9,3.78938]
[1730896749755,3.81,2639.4,2639.0,0.03514159]
[1730896750252,3.81,2639.4,2639.0,3.82437159]
[1730896750559,3.81,2639.4,2639.0,0.03514159]
[1730896751143,4.57807,2639.1,2639.0,0.03514159]
[1730896751554,4.57807,2639.1,2638.4,0.8109]
[1730896751555,4.57809,2639.1,2638.4,0.8109]
[1730896751842,7.58,2638.6,2638.1,0.8176]
[1730896752049,3.78968,2638.8,2638.5,0.03449634]
[1730896752230,3.78968,2638.8,2638.1,4.68399266]
[1730896752439,0.457809,2639.0,2638.6,0.03444163]
[1730896752756,3.7901,2638.5,2638.1,0.8176]
[1730896753065,3.7901,2638.5,2638.2,0.03713624]
[1730896753359,7.58022,2638.5,2638.2,0.03713624]
[1730896753519,3.79031,2638.3,2638.2,0.03713624]
[1730896753951,7.58228,2637.8,2637.3,0.7747]
[1730896754155,3.79114,2637.8,2637.3,0.7747]
[1730896754323,10.31013519,2638.3,2637.4,0.03639633]
[1730896754522,3.79146,2637.6,2637.0,4.61793]
[1730896754750,0.7678,2638.0,2637.0,4.6179]
[1730896754967,3.79156,2637.5,2637.1,0.03413419]
[1730896755259,6.79089,2637.9,2637.0,0.8258]
[1730896755472,3.79196,2637.2,2637.0,0.8258]
[1730896755632,7.58396,2637.2,2637.0,0.8258]
[1730896755961,7.58396,2637.2,2636.8,0.7922]
[1730896756129,3.79196,2637.2,2636.8,0.7922]
[1730896756330,3.79205,2637.1,2636.8,0.84739753]
[1730896756740,3.79229,2637.0,2636.8,0.05519753]
[1730896757037,4.171519,2637.0,2636.5,4.58779]
[1730896757250,3.79229,2637.0,2636.8,0.05519753]
[1730896757441,3.79229,2637.0,2636.5,4.58779]
[1730896757658,3.79229,2637.0,2636.8,0.05519753]
[1730896757852,10.33903519,2637.5,2636.5,0.7949]
[1730896758178,3.79271,2636.7,2636.5,0.7949]
[1730896758641,3.79242,2636.9,2636.5,0.7949]
[1730896759168,3.7925,2636.8,2636.5,0.7949]
[1730896759367,14.13055519,2637.5,2636.5,0.7949]
[1730896759662,3.79254,2636.8,2636.5,0.7949]
[1730896760372,0.7687,2637.0,2636.2,0.755]
[1730896760534,3.7928,2636.6,2636.2,0.755]
[1730896761446,7.58566,2636.6,2636.2,0.755]
[1730896761763,3.7928,2636.6,2636.2,0.755]
[1730896761971,3.79314,2636.4,2636.2,0.755]
[1730896762326,3.79286,2636.6,2636.2,0.755]
[1730896762656,3.7929,2636.5,2636.2,0.755]
[1730896762962,3.79286,2636.6,2636.2,0.755]
[1730896763150,7.58574,2636.6,2636.2,0.755]
[1730896763467,3.79286,2636.6,2636.3,0.03474635]
[1730896763966,3.79258,2636.8,2636.3,0.03474635]
[1730896764151,3.79275,2636.7,2636.3,0.03474635]
[1730896764356,3.79256,2636.8,2636.3,0.11060732]
[1730896764666,3.79256,2636.8,2636.3,0.03474635]
[1730896765047,7.58514,2636.8,2636.3,0.03474635]
[1730896765367,3.79256,2636.8,2636.3,0.03474635]
[1730896765544,3.79262,2636.7,2636.3,0.03474635]
[1730896765741,3.79256,2636.8,2636.3,3.82793635]
[1730896766577,3.79264,2636.7,2636.3,0.03474635]
[1730896766738,3.79272,2636.7,2636.3,0.03474635]
[1730896767365,7.58543,2636.7,2636.3,0.03474635]
[1730896768173,3.79271,2636.7,2636.3,0.03474635]
[1730896768383,7.58543,2636.7,2636.3,0.03474635]
[1730896768893,3.79271,2636.7,2636.3,0.03474635]
[1730896769679,7.58486,2636.9,2636.3,3.82791635]
[1730896770175,3.79247,2636.8,2636.3,3.82786635]
[1730896770377,3.79264,2636.7,2636.3,0.03474635]
[1730896771281,3.79278,2636.6,2636.3,0.03474635]
[1730896771650,3.79262,2636.7,2636.3,0.03474635]
[1730896772074,3.79283,2636.6,2636.3,0.03474635]
[1730896772298,3.79262,2636.7,2636.3,0.03474635]
[1730896772972,3.79242,2636.9,2636.3,3.82793635]
[1730896773274,3.79248,2636.8,2636.3,3.82793635]
[1730896773692,3.79248,2636.8,2636.3,7.62112635]
[1730896773987,3.79248,2636.8,2636.3,3.82793635]
[1730896774508,3.79269,2636.7,2636.3,0.03474635]
[1730896774662,3.79269,2636.7,2636.2,4.53307635]
[1730896774868,3.79269,2636.7,2636.4,0.0387652]
[1730896775190,3.79277,2636.6,2636.2,0.73974635]
[1730896775500,0.75853,2636.7,2636.2,4.60890512]
[1730896775672,3.79257,2636.8,2636.2,4.60890512]
[1730896775673,3.79257,2636.8,2636.4,3.79298]
[1730896775998,4.61364,2636.9,2636.5,3.7929]
[1730896776199,3.79234,2636.9,2636.5,3.83160197]
[1730896776968,7.58477,2636.9,2636.5,0.03870197]
[1730896777310,3.79256,2636.8,2636.5,0.03870197]
[1730896777600,3.79234,2636.9,2636.3,3.7931]
[1730896777601,3.79262,2636.7,2636.3,3.7931]
[1730896777804,3.79262,2636.7,2636.6,0.03863875]
[1730896778096,3.79234,2636.9,2636.6,0.03863875]
[1730896778398,3.79234,2636.9,2636.4,3.79304]
[1730896778605,3.79234,2636.9,2636.7,0.03857554]
[1730896778765,3.79234,2636.9,2636.5,3.79286]
[1730896779102,7.58477,2636.9,2636.4,3.79303]
[1730896779307,3.79234,2636.9,2636.6,0.04185865]
[1730896779504,3.79218,2637.0,2636.4,3.79303]
[1730896779802,3.7924,2636.9,2636.7,0.04179016]
[1730896779980,3.7924,2636.9,2636.5,3.79289]
[1730896780190,3.7924,2636.9,2636.8,0.03851233]
[1730896780511,3.7924,2636.9,2636.8,0.04172169]
[1730896780805,3.79218,2637.0,2636.5,3.79282]
[1730896781008,3.79218,2637.0,2636.8,0.04172169]
[1730896781173,7.58449,2637.0,2636.5,3.79282]
[1730896781373,7.58449,2637.0,2636.9,0.03842889]
[1730896781602,3.79249,2636.8,2636.4,3.79304]
[1730896781807,3.79234,2636.9,2636.4,3.79297]
[1730896782101,3.79234,2636.9,2636.5,0.03873035]
[1730896782496,3.79255,2636.8,2636.5,0.03873035]
[1730896782703,4.171935,2636.7,2636.3,3.79319]
[1730896783015,3.79268,2636.7,2636.6,0.03866712]
[1730896783310,3.79268,2636.7,2636.2,0.73974635]
[1730896783311,7.58564,2636.6,2636.2,0.73974635]
[1730896783513,3.79278,2636.6,2636.2,0.73974635]
[1730896783814,7.58564,2636.6,2636.2,0.73974635]
[1730896784172,7.58566,2636.6,2636.2,0.73974635]
[1730896784372,3.79278,2636.6,2636.2,0.73974635]
[1730896785010,7.58565,2636.6,2636.2,0.73974635]
[1730896785309,3.79264,2636.7,2636.2,4.53298635]
[1730896785872,3.79277,2636.6,2636.2,4.53298635]
[1730896786788,3.79254,2636.8,2636.3,3.79311]
[1730896786999,3.79269,2636.7,2636.3,3.79311]
[1730896787180,3.79269,2636.7,2636.2,0.73974635]
[1730896787181,3.79269,2636.7,2636.2,4.60892499]
[1730896787721,3.79283,2636.6,2636.2,0.73974635]
[1730896790484,3.79283,2636.6,2636.2,4.53307635]
[1730896791493,3.79283,2636.6,2636.2,0.73974635]
[1730896792011,3.79303,2636.5,2636.2,0.73974635]
[1730896792311,3.79176,2637.3,2636.0,3.7936]
[1730896792312,3.7933,2636.3,2636.0,0.7997]
[1730896792519,3.79341,2636.2,2636.0,0.7997]
[1730896792721,6.79218,2637.1,2636.0,0.7997]
[1730896792722,3.793,2636.5,2636.0,0.7997]
[1730896792878,3.79306,2636.4,2636.0,4.59331]
[1730896793208,3.79292,2636.5,2636.0,4.59331]
[1730896793376,3.79292,2636.5,2636.1,0.03636047]
[1730896793576,3.79307,2636.4,2636.1,0.03636047]
[1730896795985,3.79297,2636.5,2636.1,0.03636047]
[1730896796190,7.58599,2636.5,2636.1,0.03636047]
[1730896796502,3.79305,2636.4,2636.1,0.03636047]
[1730896797429,3.79292,2636.5,2636.1,0.03636047]
[1730896799215,3.79306,2636.4,2636.1,0.03636047]
[1730896799728,3.79292,2636.5,2636.1,0.03636047]
[1730896799929,1.41303052,2636.8,2636.3,0.8307]
[1730896799930,3.79247,2636.8,2636.3,0.8307]
[1730896800099,3.79247,2636.8,2636.3,4.62381]
[1730896800298,3.79247,2636.8,2636.4,0.03624451]
[1730896800722,10.33793519,2636.9,2636.4,3.82915451]
[1730896800923,9.51863519,2636.9,2636.5,3.7928]
[1730896801138,4.59991,2637.4,2636.8,3.7924]
[1730896801343,3.79176,2637.3,2636.9,0.774]
[1730896801636,3.79176,2637.3,2636.9,0.81260709]
[1730896801637,3.79199,2637.2,2636.9,0.81260709]
[1730896802197,7.58398,2637.2,2636.9,0.81260709]
[1730896802402,3.79199,2637.2,2636.9,0.81260709]
[1730896802902,7.58343,2637.4,2636.9,0.823749]
[1730896803095,4.3356145,2637.4,2636.9,0.823749]
[1730896803415,4.59971,2637.6,2636.9,4.616069]
[1730896803619,3.79154,2637.5,2637.0,3.79209]
[1730896803941,3.81,2637.7,2637.2,0.7689]
[1730896804147,3.81,2637.7,2637.3,3.79167]
[1730896804354,3.81,2637.7,2637.2,4.56066]
[1730896804669,3.81,2637.7,2637.3,3.79174]
[1730896805003,3.81,2637.7,2637.4,3.79159]
[1730896805241,3.79085,2638.0,2637.5,4.60789]
[1730896805415,4.62471,2638.0,2637.5,4.60789]
[1730896805605,4.62471,2638.0,2637.5,0.8165]
[1730896806143,3.79093,2637.9,2637.5,0.8165]
[1730896806442,3.79105,2637.8,2637.5,0.8165]
[1730896807310,3.79096,2637.9,2637.5,0.8165]
[1730896807508,3.79105,2637.8,2637.5,0.8165]
[1730896807921,3.7912,2637.7,2637.3,0.7531]
[1730896808121,3.79105,2637.8,2637.3,0.7531]
[1730896808442,3.79119,2637.7,2637.3,0.7531]
[1730896809139,3.79118,2637.7,2637.3,0.7531]
[1730896809302,0.758223,2637.6,2637.3,0.7531]
[1730896809714,3.79133,2637.6,2637.3,0.7531]
[1730896810614,3.79118,2637.7,2637.3,0.7531]
[1730896811888,3.79149,2637.5,2637.3,0.7531]
[1730896812171,10.32183519,2638.5,2637.8,3.791]